[Event "Titled Tuesday Blitz May 23 Early 2023"]
[White "KorolDimitriy75"]
[Black "Bodnaruk, Anastasia"]
[BlackFideId "4181751"]
[WhiteElo "2451"]
[BlackElo "2304"]
[Result "0-1"]
[Round "05"]
[TimeControl "180+2"]
[Date "2023.05.23"]
[WhiteClock "0:00:00"]
[BlackClock "0:00:35"]

1. d4 {[%clk 0:03:00]}  Nf6 {[%clk 0:02:55]} 2. c4 {[%clk 0:03:00]}  g6 {[%clk 0:02:53]} 3. Nc3 {[%clk 0:03:01]}  Bg7 {[%clk 0:02:53]} 4. e4 {[%clk 0:03:02]}  d6 {[%clk 0:02:53]} 5. Nf3 {[%clk 0:03:02]}  O-O {[%clk 0:02:52]} 6. Be2 {[%clk 0:03:03]}  e5 {[%clk 0:02:51]} 7. dxe5 {[%clk 0:03:04]}  dxe5 {[%clk 0:02:50]} 8. Qxd8 {[%clk 0:03:05]}  Rxd8 {[%clk 0:02:50]} 9. Bg5 {[%clk 0:03:05]}  Nbd7 {[%clk 0:02:50]} 10. O-O-O {[%clk 0:03:02]}  Rf8 {[%clk 0:02:49]} 11. Ne1 {[%clk 0:03:01]}  Nc5 {[%clk 0:02:40]} 12. f3 {[%clk 0:03:00]}  Ne6 {[%clk 0:02:39]} 13. Be3 {[%clk 0:02:56]}  c6 {[%clk 0:02:35]} 14. Nc2 {[%clk 0:02:55]}  Re8 {[%clk 0:02:28]} 15. Rd2 {[%clk 0:02:55]}  Bf8 {[%clk 0:02:23]} 16. Rhd1 {[%clk 0:02:55]}  h5 {[%clk 0:02:15]} 17. b3 {[%clk 0:02:53]}  h4 {[%clk 0:02:09]} 18. Kb2 {[%clk 0:02:51]}  Nh5 {[%clk 0:02:07]} 19. Bf1 {[%clk 0:02:47]}  f5 {[%clk 0:02:01]} 20. Bf2 {[%clk 0:02:36]}  Be7 {[%clk 0:01:56]} 21. b4 {[%clk 0:02:22]}  Neg7 {[%clk 0:01:17]} 22. c5 {[%clk 0:01:56]}  Be6 {[%clk 0:01:16]} 23. Na3 {[%clk 0:01:28]}  Rad8 {[%clk 0:01:15]} 24. Rxd8 {[%clk 0:01:27]}  Rxd8 {[%clk 0:01:15]} 25. Rxd8+ {[%clk 0:01:27]}  Bxd8 {[%clk 0:01:16]} 26. Nc4 {[%clk 0:01:24]}  Bxc4 {[%clk 0:01:05]} 27. Bxc4+ {[%clk 0:01:24]}  Kf8 {[%clk 0:01:06]} 28. a4 {[%clk 0:01:14]}  Nf4 {[%clk 0:01:02]} 29. Bf1 {[%clk 0:01:13]}  Nge6 {[%clk 0:01:00]} 30. g3 {[%clk 0:01:01]}  hxg3 {[%clk 0:00:59]} 31. hxg3 {[%clk 0:01:02]}  Nh5 {[%clk 0:01:00]} 32. Bd3 {[%clk 0:00:40]}  f4 {[%clk 0:00:55]} 33. g4 {[%clk 0:00:39]}  Ng3 {[%clk 0:00:55]} 34. Kb3 {[%clk 0:00:24]}  Ng5 {[%clk 0:00:45]} 35. Bxg3 {[%clk 0:00:07]}  fxg3 {[%clk 0:00:44]} 36. Ne2 {[%clk 0:00:06]}  g2 {[%clk 0:00:43]} 37. Ng1 {[%clk 0:00:06]}  Ne6 {[%clk 0:00:35]} 38. Kc4 {[%clk 0:00:00]}  Bh4 {[%clk 0:00:35]} 0-1


[Site "https://www.chess.com"]

[Event "Titled Tuesday Blitz May 23 Early 2023"]
[White "Sargissyan, Sargis"]
[Black "robertoalejandro10"]
[WhiteFideId "13303210"]
[WhiteElo "2109"]
[BlackElo "2560"]
[Result "0-1"]
[Round "05"]
[TimeControl "180+2"]
[Date "2023.05.23"]
[WhiteClock "0:00:03"]
[BlackClock "0:01:59"]

1. c4 {[%clk 0:03:00]}  c5 {[%clk 0:02:54]} 2. Nc3 {[%clk 0:02:59]}  g6 {[%clk 0:02:54]} 3. h4 {[%clk 0:02:57]}  h5 {[%clk 0:02:53]} 4. Nf3 {[%clk 0:02:56]}  Bg7 {[%clk 0:02:50]} 5. g3 {[%clk 0:02:53]}  Nc6 {[%clk 0:02:50]} 6. Bg2 {[%clk 0:02:54]}  Nf6 {[%clk 0:02:50]} 7. O-O {[%clk 0:02:53]}  O-O {[%clk 0:02:49]} 8. d4 {[%clk 0:02:53]}  cxd4 {[%clk 0:02:50]} 9. Nxd4 {[%clk 0:02:53]}  d6 {[%clk 0:02:48]} 10. Nxc6 {[%clk 0:02:38]}  bxc6 {[%clk 0:02:49]} 11. Bxc6 {[%clk 0:02:38]}  Bh3 {[%clk 0:02:48]} 12. Bg2 {[%clk 0:02:33]}  Bxg2 {[%clk 0:02:48]} 13. Kxg2 {[%clk 0:02:34]}  Rc8 {[%clk 0:02:48]} 14. Qd3 {[%clk 0:02:18]}  Qc7 {[%clk 0:02:47]} 15. Nd5 {[%clk 0:02:13]}  Nxd5 {[%clk 0:02:32]} 16. cxd5 {[%clk 0:02:13]}  Qc2 {[%clk 0:02:33]} 17. Bg5 {[%clk 0:02:05]}  Qxb2 {[%clk 0:02:22]} 18. Bxe7 {[%clk 0:01:57]}  Rfe8 {[%clk 0:02:22]} 19. Bxd6 {[%clk 0:01:55]}  Qb6 {[%clk 0:02:18]} 20. Bf4 {[%clk 0:01:42]}  Bxa1 {[%clk 0:02:13]} 21. Rxa1 {[%clk 0:01:43]}  Qb2 {[%clk 0:02:12]} 22. Rd1 {[%clk 0:01:36]}  Rxe2 {[%clk 0:02:02]} 23. Be3 {[%clk 0:01:35]}  Rc3 {[%clk 0:02:01]} 24. Rd2 {[%clk 0:00:03]}  Rxd3 {[%clk 0:01:59]} 0-1


[Site "https://www.chess.com"]

[Event "Titled Tuesday Blitz May 23 Early 2023"]
[White "Jakubowska, Anna"]
[Black "Omelja, Artem"]
[WhiteFideId "1121952"]
[BlackFideId "14119846"]
[WhiteElo "2001"]
[BlackElo "2404"]
[Result "0-1"]
[Round "05"]
[TimeControl "180+2"]
[Date "2023.05.23"]
[WhiteClock "0:00:00"]
[BlackClock "0:00:07"]

1. e4 {[%clk 0:03:00]}  e5 {[%clk 0:02:45]} 2. Nf3 {[%clk 0:02:58]}  Nc6 {[%clk 0:02:45]} 3. Bb5 {[%clk 0:02:58]}  a6 {[%clk 0:02:44]} 4. Ba4 {[%clk 0:02:59]}  Nf6 {[%clk 0:02:44]} 5. O-O {[%clk 0:02:59]}  b5 {[%clk 0:02:42]} 6. Bb3 {[%clk 0:02:59]}  Be7 {[%clk 0:02:43]} 7. d3 {[%clk 0:02:59]}  d6 {[%clk 0:02:43]} 8. a4 {[%clk 0:02:58]}  b4 {[%clk 0:02:42]} 9. a5 {[%clk 0:02:55]}  Bg4 {[%clk 0:02:36]} 10. Ba4 {[%clk 0:02:52]}  Bd7 {[%clk 0:02:36]} 11. Re1 {[%clk 0:02:39]}  O-O {[%clk 0:02:25]} 12. Nbd2 {[%clk 0:02:36]}  Nb8 {[%clk 0:02:13]} 13. Nc4 {[%clk 0:02:30]}  Bxa4 {[%clk 0:02:02]} 14. Rxa4 {[%clk 0:02:29]}  c5 {[%clk 0:02:03]} 15. Nb6 {[%clk 0:02:26]}  Ra7 {[%clk 0:02:03]} 16. c3 {[%clk 0:02:20]}  bxc3 {[%clk 0:02:00]} 17. bxc3 {[%clk 0:02:20]}  Nbd7 {[%clk 0:02:00]} 18. Nc4 {[%clk 0:02:10]}  Qc7 {[%clk 0:01:54]} 19. Bg5 {[%clk 0:02:01]}  Rb8 {[%clk 0:01:51]} 20. Qc2 {[%clk 0:01:57]}  Rab7 {[%clk 0:01:50]} 21. Raa1 {[%clk 0:01:49]}  Rb5 {[%clk 0:01:38]} 22. Nh4 {[%clk 0:01:45]}  Bf8 {[%clk 0:01:33]} 23. Nf5 {[%clk 0:01:40]}  g6 {[%clk 0:01:32]} 24. Nh6+ {[%clk 0:01:30]}  Kg7 {[%clk 0:01:21]} 25. Qe2 {[%clk 0:01:29]}  R8b7 {[%clk 0:01:11]} 26. Qf3 {[%clk 0:01:15]}  Be7 {[%clk 0:01:02]} 27. Ne3 {[%clk 0:01:07]}  Qd8 {[%clk 0:00:47]} 28. Nd5 {[%clk 0:00:59]}  Nxd5 {[%clk 0:00:38]} 29. Qxf7+ {[%clk 0:00:58]}  Kh8 {[%clk 0:00:38]} 30. Qxd5 {[%clk 0:00:45]}  Qe8 {[%clk 0:00:11]} 31. Nf7+ {[%clk 0:00:32]}  Kg7 {[%clk 0:00:10]} 32. Bh6+ {[%clk 0:00:27]}  Kf6 {[%clk 0:00:09]} 33. Nxd6 {[%clk 0:00:16]}  Bxd6 {[%clk 0:00:09]} 34. Qxd6+ {[%clk 0:00:16]}  Qe6 {[%clk 0:00:10]} 35. Bg5+ {[%clk 0:00:13]}  Kf7 {[%clk 0:00:10]} 36. Qxe6+ {[%clk 0:00:11]}  Kxe6 {[%clk 0:00:10]} 37. h3 {[%clk 0:00:11]}  Rb3 {[%clk 0:00:10]} 38. Rec1 {[%clk 0:00:10]}  c4 {[%clk 0:00:09]} 39. d4 {[%clk 0:00:08]}  R7b5 {[%clk 0:00:08]} 40. d5+ {[%clk 0:00:08]}  Kd6 {[%clk 0:00:07]} 41. Be3 {[%clk 0:00:09]}  Nc5 {[%clk 0:00:07]} 42. Bxc5+ {[%clk 0:00:09]}  Rxc5 {[%clk 0:00:08]} 43. Kf1 {[%clk 0:00:09]}  Rbb5 {[%clk 0:00:08]} 44. Ke1 {[%clk 0:00:08]}  Rxa5 {[%clk 0:00:09]} 45. Rxa5 {[%clk 0:00:08]}  Rxa5 {[%clk 0:00:10]} 46. Kd2 {[%clk 0:00:07]}  Kc5 {[%clk 0:00:09]} 47. Rb1 {[%clk 0:00:06]}  Ra2+ {[%clk 0:00:09]} 48. Ke3 {[%clk 0:00:06]}  Rc2 {[%clk 0:00:09]} 49. Rd1 {[%clk 0:00:03]}  Rxc3+ {[%clk 0:00:09]} 50. Ke2 {[%clk 0:00:03]}  Kd6 {[%clk 0:00:09]} 51. Rb1 {[%clk 0:00:03]}  Rb3 {[%clk 0:00:09]} 52. Ra1 {[%clk 0:00:03]}  Rb6 {[%clk 0:00:03]} 53. Kd2 {[%clk 0:00:03]}  Kc5 {[%clk 0:00:04]} 54. Kc3 {[%clk 0:00:03]}  Rb3+ {[%clk 0:00:04]} 55. Kc2 {[%clk 0:00:04]}  Kd4 {[%clk 0:00:04]} 56. Rxa6 {[%clk 0:00:04]}  Kxe4 {[%clk 0:00:04]} 57. d6 {[%clk 0:00:04]}  Rd3 {[%clk 0:00:04]} 58. Rc6 {[%clk 0:00:03]}  Kd5 {[%clk 0:00:04]} 59. Rc7 {[%clk 0:00:02]}  Kxd6 {[%clk 0:00:04]} 60. Rxc4 {[%clk 0:00:03]}  Rd5 {[%clk 0:00:05]} 61. Rc3 {[%clk 0:00:02]}  Ke6 {[%clk 0:00:05]} 62. Rd3 {[%clk 0:00:02]}  Rc5+ {[%clk 0:00:05]} 63. Kd2 {[%clk 0:00:02]}  e4 {[%clk 0:00:05]} 64. Rd4 {[%clk 0:00:02]}  Ke5 {[%clk 0:00:05]} 65. Ra4 {[%clk 0:00:02]}  Kf4 {[%clk 0:00:04]} 66. Ke2 {[%clk 0:00:02]}  Rc2+ {[%clk 0:00:04]} 67. Ke1 {[%clk 0:00:02]}  Rb2 {[%clk 0:00:05]} 68. g3+ {[%clk 0:00:01]}  Kf3 {[%clk 0:00:05]} 69. Ra3+ {[%clk 0:00:02]}  Kg2 {[%clk 0:00:05]} 70. Re3 {[%clk 0:00:02]}  Kxh3 {[%clk 0:00:05]} 71. Rxe4 {[%clk 0:00:02]}  Kg2 {[%clk 0:00:05]} 72. Re2 {[%clk 0:00:02]}  Rb1+ {[%clk 0:00:05]} 73. Kd2 {[%clk 0:00:03]}  Rb3 {[%clk 0:00:05]} 74. Ke1 {[%clk 0:00:02]}  Rb1+ {[%clk 0:00:05]} 75. Kd2 {[%clk 0:00:02]}  Rb2+ {[%clk 0:00:05]} 76. Ke1 {[%clk 0:00:02]}  Rxe2+ {[%clk 0:00:04]} 77. Kxe2 {[%clk 0:00:03]}  h5 {[%clk 0:00:03]} 78. Ke3 {[%clk 0:00:03]}  g5 {[%clk 0:00:03]} 79. Ke2 {[%clk 0:00:03]}  h4 {[%clk 0:00:03]} 80. gxh4 {[%clk 0:00:03]}  gxh4 {[%clk 0:00:04]} 81. f4 {[%clk 0:00:03]}  h3 {[%clk 0:00:05]} 82. f5 {[%clk 0:00:04]}  h2 {[%clk 0:00:05]} 83. f6 {[%clk 0:00:05]}  h1=Q {[%clk 0:00:06]} 84. f7 {[%clk 0:00:00]}  Qh8 {[%clk 0:00:07]} 0-1


[Site "https://www.chess.com"]

[Event "Titled Tuesday Blitz May 23 Early 2023"]
[White "Fernandez Siles, Luis"]
[Black "Ibadov, Dashgyn"]
[WhiteFideId "2209420"]
[BlackFideId "24107514"]
[WhiteElo "2195"]
[BlackElo "2208"]
[Result "1/2-1/2"]
[Round "05"]
[TimeControl "180+2"]
[Date "2023.05.23"]
[WhiteClock "0:00:10"]
[BlackClock "0:00:09"]

1. d4 {[%clk 0:03:00]}  Nf6 {[%clk 0:02:59]} 2. c4 {[%clk 0:03:00]}  c5 {[%clk 0:02:59]} 3. d5 {[%clk 0:03:00]}  d6 {[%clk 0:02:59]} 4. Nc3 {[%clk 0:02:58]}  g6 {[%clk 0:03:00]} 5. e4 {[%clk 0:02:58]}  Bg7 {[%clk 0:03:00]} 6. f4 {[%clk 0:02:58]}  O-O {[%clk 0:03:00]} 7. Nf3 {[%clk 0:02:57]}  e6 {[%clk 0:03:00]} 8. dxe6 {[%clk 0:02:48]}  fxe6 {[%clk 0:03:01]} 9. Bd3 {[%clk 0:02:47]}  Nc6 {[%clk 0:03:01]} 10. O-O {[%clk 0:02:47]}  b6 {[%clk 0:02:55]} 11. Ng5 {[%clk 0:02:43]}  Nd4 {[%clk 0:02:48]} 12. Bd2 {[%clk 0:02:38]}  Qe7 {[%clk 0:02:46]} 13. Qe1 {[%clk 0:02:30]}  Bb7 {[%clk 0:02:40]} 14. Qh4 {[%clk 0:02:14]}  h6 {[%clk 0:02:33]} 15. Nf3 {[%clk 0:02:09]}  Nd5 {[%clk 0:02:20]} 16. Qg3 {[%clk 0:01:40]}  Nxc3 {[%clk 0:02:10]} 17. Bxc3 {[%clk 0:01:28]}  Nxf3+ {[%clk 0:01:58]} 18. Rxf3 {[%clk 0:01:23]}  Bxc3 {[%clk 0:01:56]} 19. bxc3 {[%clk 0:01:22]}  Qg7 {[%clk 0:01:55]} 20. Qh3 {[%clk 0:01:17]}  Rae8 {[%clk 0:01:49]} 21. Rg3 {[%clk 0:01:17]}  e5 {[%clk 0:01:49]} 22. f5 {[%clk 0:01:12]}  g5 {[%clk 0:01:48]} 23. Qh5 {[%clk 0:01:10]}  Kh7 {[%clk 0:01:44]} 24. h4 {[%clk 0:01:07]}  Qf7 {[%clk 0:01:18]} 25. Qxf7+ {[%clk 0:01:06]}  Rxf7 {[%clk 0:01:19]} 26. hxg5 {[%clk 0:01:07]}  hxg5 {[%clk 0:01:20]} 27. Rxg5 {[%clk 0:01:08]}  Rg7 {[%clk 0:01:03]} 28. Rxg7+ {[%clk 0:01:07]}  Kxg7 {[%clk 0:01:03]} 29. Kf2 {[%clk 0:01:07]}  Rh8 {[%clk 0:01:02]} 30. a4 {[%clk 0:00:51]}  Kf6 {[%clk 0:00:37]} 31. a5 {[%clk 0:00:50]}  Bc6 {[%clk 0:00:23]} 32. axb6 {[%clk 0:00:47]}  axb6 {[%clk 0:00:24]} 33. Ra7 {[%clk 0:00:42]}  Ra8 {[%clk 0:00:24]} 34. Rh7 {[%clk 0:00:39]}  Ra2+ {[%clk 0:00:23]} 35. Kf3 {[%clk 0:00:38]}  Rd2 {[%clk 0:00:21]} 36. Bb1 {[%clk 0:00:34]}  Rb2 {[%clk 0:00:18]} 37. Rh1 {[%clk 0:00:32]}  Rb3 {[%clk 0:00:11]} 38. Rh6+ {[%clk 0:00:25]}  Ke7 {[%clk 0:00:11]} 39. Rh7+ {[%clk 0:00:17]}  Kf6 {[%clk 0:00:09]} 40. Rh6+ {[%clk 0:00:12]}  Ke7 {[%clk 0:00:09]} 41. Rh7+ {[%clk 0:00:10]}  Kf6 {[%clk 0:00:09]} 42. Rh6+ {[%clk 0:00:10]} 1/2-1/2


[Site "https://www.chess.com"]

[Event "Titled Tuesday Blitz May 23 Early 2023"]
[White "Toncheva, Nadya"]
[Black "LeoLV10"]
[WhiteFideId "2924056"]
[WhiteElo "2101"]
[BlackElo "2393"]
[Result "0-1"]
[Round "05"]
[TimeControl "180+2"]
[Date "2023.05.23"]
[WhiteClock "0:00:01"]
[BlackClock "0:00:29"]

1. d4 {[%clk 0:03:00]}  Nf6 {[%clk 0:02:58]} 2. c4 {[%clk 0:03:01]}  e5 {[%clk 0:02:57]} 3. dxe5 {[%clk 0:03:00]}  Ng4 {[%clk 0:02:57]} 4. Nf3 {[%clk 0:03:01]}  Bb4+ {[%clk 0:02:55]} 5. Bd2 {[%clk 0:02:57]}  Qe7 {[%clk 0:02:55]} 6. Nc3 {[%clk 0:02:56]}  Nxe5 {[%clk 0:02:51]} 7. Nxe5 {[%clk 0:02:55]}  Qxe5 {[%clk 0:02:51]} 8. a3 {[%clk 0:02:54]}  Be7 {[%clk 0:02:44]} 9. e3 {[%clk 0:02:49]}  O-O {[%clk 0:02:44]} 10. Bd3 {[%clk 0:02:49]}  c6 {[%clk 0:02:41]} 11. O-O {[%clk 0:02:48]}  d5 {[%clk 0:02:35]} 12. cxd5 {[%clk 0:02:47]}  cxd5 {[%clk 0:02:36]} 13. Qf3 {[%clk 0:02:46]}  Be6 {[%clk 0:02:34]} 14. Nb5 {[%clk 0:02:41]}  Nc6 {[%clk 0:02:24]} 15. Bc3 {[%clk 0:02:40]}  Qb8 {[%clk 0:02:24]} 16. Qh5 {[%clk 0:02:17]}  h6 {[%clk 0:02:11]} 17. f4 {[%clk 0:02:11]}  f5 {[%clk 0:02:07]} 18. Qg6 {[%clk 0:01:59]}  Bf6 {[%clk 0:02:07]} 19. Bxf5 {[%clk 0:01:47]}  Bxf5 {[%clk 0:01:56]} 20. Qxf5 {[%clk 0:01:48]}  Qe8 {[%clk 0:01:56]} 21. Qxd5+ {[%clk 0:01:45]}  Kh8 {[%clk 0:01:55]} 22. Rae1 {[%clk 0:01:42]}  Rd8 {[%clk 0:01:54]} 23. Qf3 {[%clk 0:01:40]}  Bxc3 {[%clk 0:01:44]} 24. Nxc3 {[%clk 0:01:39]}  Rd2 {[%clk 0:01:45]} 25. Rf2 {[%clk 0:01:38]}  Rd3 {[%clk 0:01:39]} 26. Qe2 {[%clk 0:01:16]}  Rd6 {[%clk 0:01:28]} 27. h3 {[%clk 0:01:13]}  Re6 {[%clk 0:01:27]} 28. Qd2 {[%clk 0:01:10]}  Qe7 {[%clk 0:01:24]} 29. Rd1 {[%clk 0:01:04]}  Rd8 {[%clk 0:01:23]} 30. Nd5 {[%clk 0:00:58]}  Qc5 {[%clk 0:01:20]} 31. b4 {[%clk 0:00:46]}  Qc4 {[%clk 0:01:14]} 32. Qc3 {[%clk 0:00:42]}  Qe4 {[%clk 0:01:08]} 33. Qc2 {[%clk 0:00:34]}  Rxd5 {[%clk 0:01:04]} 34. Rxd5 {[%clk 0:00:26]}  Qxd5 {[%clk 0:01:04]} 35. Rd2 {[%clk 0:00:25]}  Qe4 {[%clk 0:01:01]} 36. Qb2 {[%clk 0:00:11]}  Qxe3+ {[%clk 0:01:00]} 37. Kh1 {[%clk 0:00:12]}  Qxf4 {[%clk 0:00:54]} 38. Rd1 {[%clk 0:00:12]}  Qe5 {[%clk 0:00:53]} 39. Qf2 {[%clk 0:00:11]}  Rf6 {[%clk 0:00:52]} 40. Qc2 {[%clk 0:00:10]}  Qf5 {[%clk 0:00:49]} 41. Qe2 {[%clk 0:00:08]}  Re6 {[%clk 0:00:45]} 42. Qc4 {[%clk 0:00:07]}  Qe4 {[%clk 0:00:40]} 43. Qc3 {[%clk 0:00:06]}  Rg6 {[%clk 0:00:38]} 44. Qb2 {[%clk 0:00:03]}  Rg3 {[%clk 0:00:34]} 45. Kh2 {[%clk 0:00:03]}  Qf4 {[%clk 0:00:30]} 46. Rf1 {[%clk 0:00:02]}  Rf3+ {[%clk 0:00:28]} 47. g3 {[%clk 0:00:01]}  Qxg3+ {[%clk 0:00:28]} 48. Kh1 {[%clk 0:00:01]}  Rxf1# {[%clk 0:00:29]} 0-1


[Site "https://www.chess.com"]

[Event "Titled Tuesday Blitz May 23 Early 2023"]
[White "Ferenc83"]
[Black "Marcziter, Dmitrii"]
[BlackFideId "13900765"]
[WhiteElo "2543"]
[BlackElo "2162"]
[Result "1/2-1/2"]
[Round "05"]
[TimeControl "180+2"]
[Date "2023.05.23"]
[WhiteClock "0:00:08"]
[BlackClock "0:00:20"]

1. b3 {[%clk 0:03:00]}  e5 {[%clk 0:02:59]} 2. Bb2 {[%clk 0:02:59]}  Bd6 {[%clk 0:02:59]} 3. c4 {[%clk 0:02:57]}  c6 {[%clk 0:02:58]} 4. Nf3 {[%clk 0:02:54]}  Qe7 {[%clk 0:02:56]} 5. e4 {[%clk 0:02:51]}  Nf6 {[%clk 0:02:55]} 6. Nc3 {[%clk 0:02:50]}  Bc7 {[%clk 0:02:50]} 7. Be2 {[%clk 0:02:49]}  O-O {[%clk 0:02:50]} 8. O-O {[%clk 0:02:49]}  d6 {[%clk 0:02:48]} 9. d4 {[%clk 0:02:47]}  a5 {[%clk 0:02:43]} 10. Re1 {[%clk 0:02:46]}  Re8 {[%clk 0:02:41]} 11. c5 {[%clk 0:02:41]}  exd4 {[%clk 0:02:37]} 12. cxd6 {[%clk 0:02:35]}  Qxd6 {[%clk 0:02:27]} 13. e5 {[%clk 0:02:31]}  Rxe5 {[%clk 0:02:27]} 14. Qxd4 {[%clk 0:01:47]}  Qxd4 {[%clk 0:02:20]} 15. Nxd4 {[%clk 0:01:47]}  Na6 {[%clk 0:02:07]} 16. Bxa6 {[%clk 0:01:41]}  Rxa6 {[%clk 0:02:05]} 17. Na4 {[%clk 0:01:35]}  Ra8 {[%clk 0:01:58]} 18. Rxe5 {[%clk 0:01:16]}  Bxe5 {[%clk 0:01:57]} 19. Nb6 {[%clk 0:01:15]}  Rb8 {[%clk 0:01:53]} 20. Re1 {[%clk 0:01:14]}  Bc7 {[%clk 0:01:45]} 21. Nc4 {[%clk 0:01:09]}  Bg4 {[%clk 0:01:40]} 22. f3 {[%clk 0:01:07]}  Bd7 {[%clk 0:01:34]} 23. Nc2 {[%clk 0:01:00]}  Nd5 {[%clk 0:01:30]} 24. Kf1 {[%clk 0:00:55]}  b5 {[%clk 0:01:27]} 25. N4e3 {[%clk 0:00:54]}  Nf4 {[%clk 0:01:21]} 26. Rd1 {[%clk 0:00:49]}  Be6 {[%clk 0:01:19]} 27. Nd4 {[%clk 0:00:49]}  Rd8 {[%clk 0:01:15]} 28. Nxc6 {[%clk 0:00:44]}  Rxd1+ {[%clk 0:01:13]} 29. Nxd1 {[%clk 0:00:44]}  a4 {[%clk 0:01:09]} 30. bxa4 {[%clk 0:00:40]}  bxa4 {[%clk 0:01:07]} 31. Nc3 {[%clk 0:00:36]}  Bc4+ {[%clk 0:01:06]} 32. Kg1 {[%clk 0:00:33]}  f6 {[%clk 0:00:56]} 33. Nd4 {[%clk 0:00:20]}  Bb6 {[%clk 0:00:54]} 34. Nxa4 {[%clk 0:00:19]}  Bxd4+ {[%clk 0:00:51]} 35. Bxd4 {[%clk 0:00:20]}  Ne2+ {[%clk 0:00:52]} 36. Kf2 {[%clk 0:00:19]}  Nxd4 {[%clk 0:00:53]} 37. a3 {[%clk 0:00:19]}  Nc2 {[%clk 0:00:52]} 38. Nb2 {[%clk 0:00:18]}  Nxa3 {[%clk 0:00:52]} 39. Ke3 {[%clk 0:00:18]}  Bf7 {[%clk 0:00:51]} 40. h4 {[%clk 0:00:18]}  h5 {[%clk 0:00:50]} 41. Kf4 {[%clk 0:00:16]}  Nc4 {[%clk 0:00:49]} 42. Nd3 {[%clk 0:00:15]}  Kf8 {[%clk 0:00:48]} 43. g4 {[%clk 0:00:15]}  hxg4 {[%clk 0:00:47]} 44. fxg4 {[%clk 0:00:15]}  Ke7 {[%clk 0:00:47]} 45. g5 {[%clk 0:00:15]}  Nd6 {[%clk 0:00:43]} 46. gxf6+ {[%clk 0:00:15]}  Kxf6 {[%clk 0:00:42]} 47. Nf2 {[%clk 0:00:15]}  Be6 {[%clk 0:00:41]} 48. Nd1 {[%clk 0:00:14]}  Nb5 {[%clk 0:00:35]} 49. Ne3 {[%clk 0:00:13]}  Nc3 {[%clk 0:00:33]} 50. Nf1 {[%clk 0:00:12]}  Nd5+ {[%clk 0:00:33]} 51. Kg3 {[%clk 0:00:12]}  Kf5 {[%clk 0:00:31]} 52. Nd2 {[%clk 0:00:11]}  Nc3 {[%clk 0:00:29]} 53. Nf3 {[%clk 0:00:11]}  Bd5 {[%clk 0:00:29]} 54. Ng5 {[%clk 0:00:10]}  Kg6 {[%clk 0:00:28]} 55. Kf4 {[%clk 0:00:09]}  Bb7 {[%clk 0:00:25]} 56. Ke5 {[%clk 0:00:09]}  Ne2 {[%clk 0:00:24]} 57. Ne6 {[%clk 0:00:09]}  Ng3 {[%clk 0:00:19]} 58. Nf4+ {[%clk 0:00:08]}  Kh6 {[%clk 0:00:18]} 59. Ne6 {[%clk 0:00:08]}  Bc8 {[%clk 0:00:18]} 60. Nxg7 {[%clk 0:00:08]}  Kxg7 {[%clk 0:00:17]} 61. Kf4 {[%clk 0:00:09]}  Nf5 {[%clk 0:00:16]} 62. Kg5 {[%clk 0:00:09]}  Nh6 {[%clk 0:00:16]} 63. h5 {[%clk 0:00:08]}  Bd7 {[%clk 0:00:16]} 64. Kf4 {[%clk 0:00:08]}  Kf6 {[%clk 0:00:16]} 65. Ke4 {[%clk 0:00:09]}  Kg5 {[%clk 0:00:17]} 66. Ke5 {[%clk 0:00:09]}  Kxh5 {[%clk 0:00:18]} 67. Kd6 {[%clk 0:00:09]}  Bg4 {[%clk 0:00:18]} 68. Ke5 {[%clk 0:00:10]}  Kg5 {[%clk 0:00:19]} 69. Ke4 {[%clk 0:00:10]}  Nf5 {[%clk 0:00:20]} 70. Ke5 {[%clk 0:00:09]}  Bh5 {[%clk 0:00:21]} 71. Ke4 {[%clk 0:00:09]}  Bf7 {[%clk 0:00:22]} 72. Ke5 {[%clk 0:00:09]}  Bg8 {[%clk 0:00:21]} 73. Ke4 {[%clk 0:00:09]}  Kf6 {[%clk 0:00:22]} 74. Kf4 {[%clk 0:00:09]}  Be6 {[%clk 0:00:22]} 75. Ke4 {[%clk 0:00:09]}  Nd6+ {[%clk 0:00:22]} 76. Kf4 {[%clk 0:00:09]}  Bd5 {[%clk 0:00:22]} 77. Ke3 {[%clk 0:00:09]}  Ke5 {[%clk 0:00:22]} 78. Kd3 {[%clk 0:00:09]}  Nb5 {[%clk 0:00:22]} 79. Ke3 {[%clk 0:00:09]}  Bc4 {[%clk 0:00:21]} 80. Kf3 {[%clk 0:00:08]}  Nd4+ {[%clk 0:00:21]} 81. Kg4 {[%clk 0:00:08]}  Ke4 {[%clk 0:00:21]} 82. Kg5 {[%clk 0:00:08]}  Bd5 {[%clk 0:00:21]} 83. Kf6 {[%clk 0:00:08]}  Nf3 {[%clk 0:00:22]} 84. Ke7 {[%clk 0:00:07]}  Ke5 {[%clk 0:00:21]} 85. Kd7 {[%clk 0:00:07]}  Nd4 {[%clk 0:00:20]} 86. Kc7 {[%clk 0:00:07]}  Ne6+ {[%clk 0:00:19]} 87. Kd7 {[%clk 0:00:07]}  Ng5 {[%clk 0:00:19]} 88. Kc7 {[%clk 0:00:07]}  Nf7 {[%clk 0:00:19]} 89. Kd7 {[%clk 0:00:07]}  Be6+ {[%clk 0:00:19]} 90. Ke7 {[%clk 0:00:07]}  Ng5 {[%clk 0:00:19]} 91. Kd8 {[%clk 0:00:06]}  Ne4 {[%clk 0:00:19]} 92. Kc7 {[%clk 0:00:06]}  Kd5 {[%clk 0:00:19]} 93. Kb6 {[%clk 0:00:05]}  Nc5 {[%clk 0:00:19]} 94. Kb5 {[%clk 0:00:05]}  Kd4 {[%clk 0:00:18]} 95. Kc6 {[%clk 0:00:05]}  Bd5+ {[%clk 0:00:18]} 96. Kd6 {[%clk 0:00:05]}  Ne4+ {[%clk 0:00:18]} 97. Kc7 {[%clk 0:00:05]}  Kc5 {[%clk 0:00:19]} 98. Kd7 {[%clk 0:00:05]}  Ng5 {[%clk 0:00:19]} 99. Ke7 {[%clk 0:00:05]}  Nf3 {[%clk 0:00:17]} 100. Kf6 {[%clk 0:00:05]}  Kd6 {[%clk 0:00:18]} 101. Kf5 {[%clk 0:00:05]}  Nd4+ {[%clk 0:00:18]} 102. Kf4 {[%clk 0:00:06]}  Nc2 {[%clk 0:00:17]} 103. Kf5 {[%clk 0:00:05]}  Kc5 {[%clk 0:00:16]} 104. Kf4 {[%clk 0:00:05]}  Na3 {[%clk 0:00:17]} 105. Ke5 {[%clk 0:00:05]}  Nc4+ {[%clk 0:00:18]} 106. Kf5 {[%clk 0:00:05]}  Kd4 {[%clk 0:00:19]} 107. Kf4 {[%clk 0:00:06]}  Be6 {[%clk 0:00:18]} 108. Kf3 {[%clk 0:00:05]}  Bd5+ {[%clk 0:00:18]} 109. Kf4 {[%clk 0:00:05]}  Nb6 {[%clk 0:00:19]} 110. Kf5 {[%clk 0:00:06]}  Nd7 {[%clk 0:00:20]} 111. Kg5 {[%clk 0:00:05]}  Ke5 {[%clk 0:00:20]} 112. Kg4 {[%clk 0:00:06]}  Be4 {[%clk 0:00:20]} 113. Kg3 {[%clk 0:00:06]}  Nf6 {[%clk 0:00:19]} 114. Kf2 {[%clk 0:00:07]}  Nd5 {[%clk 0:00:20]} 115. Ke2 {[%clk 0:00:07]}  Kd4 {[%clk 0:00:20]} 116. Kd2 {[%clk 0:00:08]}  Nb4 {[%clk 0:00:20]} 1/2-1/2


[Site "https://www.chess.com"]